fUST/lending_fUST_20250708
["ID","MTS","AMOUNT","RATE_DAILY","PERIOD"]
[370178384,1751908244129,-150.0,0.00020971,2]
[370178385,1751908244138,-2650.0,0.00020995,2]
[370178386,1751908244148,-168.0,0.0002102,2]
[370178387,1751908244158,-447.0097463,0.00021041,2]
[370178388,1751908244167,-355.527084,0.00021041,2]
[370178389,1751908244177,-450.34,0.00021086,3]
[370178390,1751908244187,-243.080467,0.00021095,2]
[370178391,1751908244196,-151.0,0.00021095,2]
[370178392,1751908244206,-151.0,0.00021095,2]
[370178393,1751908244215,-151.0,0.00021095,2]
[370178394,1751908244224,-256.68,0.00021095,2]
[370178395,1751908244235,-529.87,0.00021095,2]
[370178396,1751908244245,-460.0,0.00021095,2]
[370178397,1751908244255,-460.0,0.00021095,2]
[370178398,1751908244265,-500.0,0.00021095,15]
[370178399,1751908244274,-151.0,0.00021095,2]
[370178400,1751908244284,-151.0,0.00021095,2]
[370178401,1751908244298,-151.0,0.00021095,2]
[370178402,1751908244308,-473.72,0.00021095,2]
[370178403,1751908244318,-151.0,0.00021095,2]
[370178404,1751908244327,-151.063272,0.00021095,2]
[370178405,1751908244339,-460.0,0.00021095,2]
[370178406,1751908244350,-1197.28,0.00021095,2]
[370178407,1751908244359,-1082.06,0.00021095,2]
[370178408,1751908244371,-1146.45,0.00021095,2]
[370178409,1751908244385,-1516.45,0.00021095,2]
[370178410,1751908244395,-1050.85,0.00021095,2]
[370178411,1751908244410,-460.0,0.00021095,2]
[370178412,1751908244421,-518.81,0.00021095,2]
[370178413,1751908244431,-151.0,0.00021095,2]
[370178414,1751908244440,-902.35,0.00021095,2]
[370178415,1751908244450,-460.0,0.00021095,2]
[370178416,1751908244459,-551.69,0.00021095,2]
[370178417,1751908244469,-460.0,0.00021095,2]
[370178418,1751908244479,-460.0,0.00021095,2]
[370178419,1751908244489,-2459.42,0.00021095,2]
[370178420,1751908244499,-151.0,0.00021095,2]
[370178421,1751908244509,-1084.55,0.00021095,2]
[370178422,1751908244643,-460.0,0.00021095,2]
[370178423,1751908244654,-151.0,0.00021095,2]
[370178424,1751908244665,-460.0,0.00021095,2]
[370178425,1751908244676,-508.99,0.00021095,2]
[370178426,1751908244686,-460.0,0.00021095,2]
[370178427,1751908244696,-952.38,0.00021095,2]
[370178428,1751908244705,-1011.65,0.00021095,2]
[370178429,1751908244716,-151.0,0.00021095,2]
[370178430,1751908244727,-2330.34,0.00021095,2]
[370178431,1751908244737,-460.0,0.00021095,2]
[370178432,1751908244747,-471.38,0.00021095,2]
[370178433,1751908244756,-2278.03,0.00021095,2]
[370178434,1751908244766,-151.0,0.00021095,2]
[370178435,1751908244775,-470.11,0.00021095,2]
[370178436,1751908244785,-460.0,0.00021095,2]
[370178437,1751908244795,-460.0,0.00021095,2]
[370178438,1751908244806,-167.23,0.00021095,2]
[370178439,1751908244816,-460.0,0.00021095,2]
[370178440,1751908244826,-495.17,0.00021095,2]
[370178441,1751908244836,-6453.38,0.00021095,2]
[370178442,1751908244847,-1106.5,0.00021095,2]
[370178443,1751908244858,-1247.8,0.00021095,2]
[370178444,1751908244867,-460.0,0.00021095,2]
[370178445,1751908244876,-460.0,0.00021095,2]
[370178446,1751908244886,-460.0,0.00021095,2]
[370178447,1751908244896,-1550.11,0.00021095,2]
[370178448,1751908244906,-150.0,0.00021108,2]
[370178449,1751908244916,-967.0,0.00021108,2]
[370178450,1751908244926,-646.0,0.00021108,2]
[370178451,1751908244935,-2153.0,0.00021108,2]
[370178452,1751908244946,-150.0,0.00021138,2]
[370178453,1751908244956,-1597.76112567,0.00021141,4]
[370178454,1751908244965,-233.0,0.00021163,4]
[370178455,1751908244975,-168.0,0.00021237,2]
[370178456,1751908244985,-168.0,0.00021322,2]
[370178457,1751908244995,-1597.76112567,0.00021348,5]
[370178458,1751908245007,-151.0,0.00021369,2]
[370178459,1751908245017,-460.0,0.00021369,2]
[370178460,1751908245027,-151.0,0.00021369,2]
[370178461,1751908245037,-191.190559,0.00021369,2]
[370178462,1751908245047,-151.0,0.00021369,2]
[370178463,1751908245056,-151.790061,0.00021369,2]
[370178464,1751908245067,-460.0,0.00021369,2]
[370178465,1751908245078,-151.0,0.00021369,2]
[370178466,1751908245089,-248.990985,0.00021369,2]
[370178467,1751908245101,-248.990985,0.00021369,2]
[370178468,1751908245111,-170.029385,0.00021369,2]
[370178469,1751908245120,-170.029385,0.00021369,2]
[370178470,1751908245130,-473.72,0.00021369,2]
[370178471,1751908245142,-151.0,0.00021369,2]
[370178472,1751908245152,-151.0,0.00021369,2]
[370178474,1751908245162,-460.0,0.00021369,2]
[370178476,1751908245172,-1197.28,0.00021369,2]
[370178477,1751908245182,-1082.06,0.00021369,2]
[370178478,1751908245192,-1146.45,0.00021369,2]
[370178479,1751908245204,-1516.45,0.00021369,2]
[370178480,1751908245215,-1050.85,0.00021369,2]
[370178481,1751908245224,-460.0,0.00021369,2]
[370178482,1751908245234,-518.81,0.00021369,2]
[370178483,1751908245244,-902.35,0.00021369,2]
[370178484,1751908245255,-460.0,0.00021369,2]
[370178485,1751908245264,-551.69,0.00021369,2]
[370178486,1751908245274,-460.0,0.00021369,2]
[370178487,1751908245290,-460.0,0.00021369,2]
[370178488,1751908245325,-2459.42,0.00021369,2]
[370178489,1751908245336,-1084.55,0.00021369,2]
[370178490,1751908245347,-460.0,0.00021369,2]
[370178491,1751908245356,-460.0,0.00021369,2]
[370178492,1751908245366,-508.99,0.00021369,2]
[370178493,1751908245376,-460.0,0.00021369,2]
[370178494,1751908245385,-952.38,0.00021369,2]
[370178495,1751908245395,-1011.65,0.00021369,2]
[370178496,1751908245404,-2330.34,0.00021369,2]
[370178497,1751908245414,-460.0,0.00021369,2]
[370178498,1751908245424,-471.38,0.00021369,2]
[370178499,1751908245433,-2278.03,0.00021369,2]
[370178500,1751908245442,-470.11,0.00021369,2]
[370178501,1751908245452,-460.0,0.00021369,2]
[370178502,1751908245461,-460.0,0.00021369,2]
[370178503,1751908245471,-460.0,0.00021369,2]
[370178504,1751908245480,-495.17,0.00021369,2]
[370178505,1751908245489,-6453.38,0.00021369,2]
[370178506,1751908245499,-1106.5,0.00021369,2]
[370178507,1751908245508,-1247.8,0.00021369,2]
[370178508,1751908245519,-500.0,0.00021369,2]
[370178509,1751908245529,-151.653595,0.00021369,2]
[370178510,1751908245539,-460.0,0.00021369,2]
[370178511,1751908245548,-460.0,0.00021369,2]
[370178512,1751908245558,-460.0,0.00021369,2]
[370178513,1751908245567,-1550.11,0.00021369,2]
[370178514,1751908245576,-1000.0,0.00021406,2]
[370178515,1751908245586,-160.0,0.00021416,3]
[370178516,1751908245595,-168.0,0.00021466,2]
[370178517,1751908245604,-500.0,0.00021506,2]
[370178518,1751908245613,-151.0,0.0002153,2]
[370178519,1751908245625,-1597.76112567,0.00021555,5]
[370178520,1751908245633,-233.0,0.00021597,5]
[370178521,1751908245643,-2610.46,0.000216,2]
[370178522,1751908245652,-173779.54497,0.00021642,2]
[370178523,1751908245663,-151.0,0.00021643,2]
[370178524,1751908245672,-151.0,0.00021643,2]
[370178525,1751908245681,-460.0,0.00021643,2]
[370178526,1751908245690,-460.0,0.00021643,2]
[370178527,1751908245700,-151.0,0.00021643,2]
[370178528,1751908245709,-500.0,0.00021643,16]
[370178529,1751908245718,-248.990985,0.00021643,2]
[370178530,1751908245728,-151.0,0.00021643,2]
[370178531,1751908245738,-248.990985,0.00021643,2]
[370178532,1751908245747,-170.029385,0.00021643,2]
[370178533,1751908245756,-170.029385,0.00021643,2]
[370178534,1751908245766,-151.0,0.00021643,2]
[370178535,1751908245775,-151.0,0.00021643,2]
[370178536,1751908245785,-473.72,0.00021643,2]
[370178537,1751908245794,-151.0,0.00021643,2]
[370178538,1751908245803,-263.879356,0.00021643,2]
[370178539,1751908245812,-151.0,0.00021643,2]
[370178540,1751908245820,-395.11230525,0.00021643,2]
[370178541,1751908245830,-1197.28,0.00021643,2]
[370178542,1751908245839,-1082.06,0.00021643,2]
[370178543,1751908245848,-1146.45,0.00021643,2]
[370178544,1751908245857,-1516.45,0.00021643,2]
[370178545,1751908245866,-1050.85,0.00021643,2]
[370178546,1751908245876,-460.0,0.00021643,2]
[370178548,1751908245884,-518.81,0.00021643,2]
[370178549,1751908245893,-151.0,0.00021643,2]
[370178551,1751908245903,-902.35,0.00021643,2]
[370178552,1751908245912,-460.0,0.00021643,2]
[370178553,1751908245921,-551.69,0.00021643,2]
[370178554,1751908245932,-460.0,0.00021643,2]
[370178555,1751908245941,-460.0,0.00021643,2]
[370178556,1751908245951,-2459.42,0.00021643,2]
[370178557,1751908245960,-151.0,0.00021643,2]
[370178558,1751908245970,-1084.55,0.00021643,2]
[370178559,1751908245983,-460.0,0.00021643,2]
[370178560,1751908245994,-151.0,0.00021643,2]
[370178561,1751908246005,-460.0,0.00021643,2]
[370178562,1751908246015,-508.99,0.00021643,2]
[370178563,1751908246024,-460.0,0.00021643,2]
[370178564,1751908246034,-952.38,0.00021643,2]
[370178565,1751908246043,-1011.65,0.00021643,2]
[370178566,1751908246053,-151.0,0.00021643,2]
[370178567,1751908246062,-2330.34,0.00021643,2]
[370178568,1751908246070,-460.0,0.00021643,2]
[370178569,1751908246080,-471.38,0.00021643,2]
[370178570,1751908246089,-2278.03,0.00021643,2]
[370178571,1751908246098,-470.11,0.00021643,2]
[370178572,1751908246107,-439.95,0.00021643,2]
[370178573,1751908246117,-460.0,0.00021643,2]
[370178574,1751908246126,-460.0,0.00021643,2]
[370178575,1751908246135,-495.17,0.00021643,2]
[370178576,1751908246146,-6453.38,0.00021643,2]
[370178577,1751908246156,-1106.5,0.00021643,2]
[370178578,1751908246166,-1247.8,0.00021643,2]
[370178579,1751908246175,-460.0,0.00021643,2]
[370178580,1751908246184,-460.0,0.00021643,2]
[370178581,1751908246193,-460.0,0.00021643,2]
[370178582,1751908246203,-1550.11,0.00021643,2]
[370178583,1751908246212,-500.0,0.0002165,2]
[370178584,1751908246223,-500.0,0.00021667,2]
[370178585,1751908246232,-410.25633465,0.00021673,2]
[370178586,1751908246241,-500.0,0.00021673,2]
[370178587,1751908246250,-500.0,0.00021673,2]
[370178588,1751908246259,-600.0,0.00021673,2]
[370178589,1751908246270,-567.10239571,0.00021673,2]
[370178590,1751908246279,-500.0,0.00021673,2]
[370178591,1751908246291,-500.0,0.00021673,2]
[370178592,1751908246301,-500.0,0.00021673,2]
[370178593,1751908246311,-1597.76112567,0.00021762,5]
[370178594,1751908246321,-170.3535,0.00021812,2]
[370178595,1751908246331,-2650.0,0.00021838,2]
[370178596,1751908246340,-800.0,0.00021862,2]
[370178597,1751908246350,-800.0,0.00021888,2]
[370178598,1751908246360,-223.0315306,0.00021904,2]
[370178599,1751908246372,-151.0,0.00021917,2]
[370178600,1751908246383,-460.0,0.00021917,2]
[370178601,1751908246393,-151.0,0.00021917,2]
[370178602,1751908246402,-151.0,0.00021917,2]
[370178603,1751908246411,-375.68,0.00021917,2]
[370178604,1751908246420,-473.72,0.00021917,2]
[370178605,1751908246430,-1197.28,0.00021917,2]
[370178606,1751908246439,-1082.06,0.00021917,2]
[370178607,1751908246448,-1146.45,0.00021917,2]
[370178608,1751908246459,-1516.45,0.00021917,2]
[370178609,1751908246467,-1050.85,0.00021917,2]
[370178610,1751908246477,-460.0,0.00021917,2]
[370178611,1751908246486,-518.81,0.00021917,2]
[370178612,1751908246496,-902.35,0.00021917,2]
[370178613,1751908246505,-460.0,0.00021917,2]
[370178614,1751908246515,-551.69,0.00021917,2]
[370178615,1751908246524,-195.13,0.00021917,2]
[370178616,1751908246534,-460.0,0.00021917,2]
[370178617,1751908246543,-2459.42,0.00021917,2]
[370178618,1751908246552,-1084.55,0.00021917,2]
[370178619,1751908246562,-315.40960427,0.00021917,2]
[370178620,1751908246572,-460.0,0.00021917,2]
[370178621,1751908246582,-508.99,0.00021917,2]
[370178622,1751908246592,-460.0,0.00021917,2]
[370178623,1751908246601,-1011.65,0.00021917,2]
[370178624,1751908246611,-952.38,0.00021917,2]
[370178625,1751908246621,-2330.34,0.00021917,2]
[370178626,1751908246630,-460.0,0.00021917,2]
[370178627,1751908246640,-471.38,0.00021917,2]
[370178628,1751908246649,-2278.03,0.00021917,2]
[370178629,1751908246658,-151.0,0.00021917,2]
[370178630,1751908246669,-470.11,0.00021917,2]
[370178631,1751908246681,-460.0,0.00021917,2]
[370178632,1751908246690,-460.0,0.00021917,2]
[370178633,1751908246699,-495.17,0.00021917,2]
[370178634,1751908246710,-6453.38,0.00021917,2]
[370178635,1751908246720,-1106.5,0.00021917,2]
[370178636,1751908246731,-1247.8,0.00021917,2]
[370178637,1751908246741,-460.0,0.00021917,2]
[370178638,1751908246750,-460.0,0.00021917,2]
[370178639,1751908246759,-460.0,0.00021917,2]
[370178640,1751908246768,-151.0,0.00021918,2]
[370178641,1751908246778,-151.0,0.00021918,2]
[370178642,1751908246787,-151.0,0.00021918,2]
[370178643,1751908246796,-151.0,0.00021918,2]
[370178644,1751908246805,-151.0,0.00021918,2]
[370178645,1751908246814,-151.0,0.00021918,2]
[370178646,1751908246823,-151.0,0.00021918,2]
[370178647,1751908246832,-151.0,0.00021918,2]
[370178648,1751908246841,-151.0,0.00021918,2]
[370178649,1751908246851,-151.0,0.00021918,2]
[370178650,1751908246859,-151.0,0.00021918,2]
[370178651,1751908246869,-151.0,0.00021918,2]
[370178652,1751908246878,-151.0,0.00021918,2]
[370178653,1751908246887,-151.0,0.00021918,2]
[370178654,1751908246896,-300.0,0.00021918,2]
[370178655,1751908246905,-500.0,0.00021918,2]
[370178656,1751908246914,-529.98454906,0.00021918,2]
[370178657,1751908246923,-500.0,0.00021918,2]
[370178658,1751908246932,-500.0,0.00021918,2]
[370178659,1751908246941,-500.0,0.00021918,2]
[370178660,1751908246950,-500.0,0.00021918,2]
[370178661,1751908246959,-500.0,0.00021918,2]
[370178662,1751908246969,-1597.76112567,0.00021969,6]
[370178663,1751908246979,-151.0,0.00021969,7]
[370178664,1751908246988,-177.917005,0.00021973,7]
[370178665,1751908246998,-500.0,0.00021999,10]
[370178666,1751908247009,-500.0,0.00021999,10]
[370178667,1751908247018,-501.12621999,0.00021999,10]
[370178668,1751908247028,-151.0,0.00021999,7]
[370178669,1751908247037,-151.0,0.00021999,7]
[370178670,1751908247046,-151.0,0.00021999,7]
[370178671,1751908247055,-151.0,0.00021999,7]
[370178672,1751908247065,-1605.0,0.00022,2]
[370178673,1751908247074,-1605.0,0.00022,2]
[370178674,1751908247083,-1605.0,0.00022,2]
[370178675,1751908247092,-1605.0,0.00022,2]
[370178676,1751908247102,-1605.0,0.00022,2]
[370178677,1751908247111,-1605.0,0.00022,2]
[370178678,1751908247120,-1605.0,0.00022,2]
[370178679,1751908247129,-1605.0,0.00022,2]
[370178680,1751908247139,-1605.0,0.00022,2]
[370178681,1751908247148,-1605.0,0.00022,2]
[370178682,1751908247157,-36388.71,0.00022,7]
[370178683,1751908247166,-741.24903769,0.00022,7]
[370178684,1751908247270,-496.21113896,0.00022,7]
[370178685,1751908247447,-460.0,0.00019178,2]
[370178686,1751908247459,-429.128,0.00020648,2]
[370178687,1751908247468,-155.0,0.00021095,2]
[370178688,1751908247478,-2603.75982335,0.00022,7]
[370178689,1751908247487,-1107.44052524,0.00022,30]
[370178690,1751908247496,-1378.0,0.00022,14]
[370178691,1751908247505,-2000.0,0.00022,14]
[370178692,1751908247514,-151.0,0.00022,7]
[370178693,1751908247523,-2000.0,0.00022,14]
[370178694,1751908247532,-2000.0,0.00022,14]
[370178695,1751908247542,-151.0,0.00022,7]
[370178696,1751908247552,-151.0,0.00022,7]
[370178697,1751908247561,-151.0,0.00022,7]
[370178698,1751908247570,-151.0,0.00022,7]
[370178699,1751908247580,-231.81707,0.00022,7]
[370178700,1751908247589,-248.990985,0.00022,7]
[370178701,1751908247598,-248.990985,0.00022,7]
[370178702,1751908247608,-170.029385,0.00022,2]
[370178703,1751908247617,-170.029385,0.00022,2]
[370178704,1751908247626,-160.0,0.00022,7]
[370178705,1751908247635,-151.0,0.00022,7]
[370178706,1751908247644,-151.0,0.00022,7]
[370178707,1751908247653,-7175.81384141,0.00022,7]
[370178708,1751908247856,-460.0,0.00019452,2]
[370178709,1751908247865,-460.0,0.00019726,2]
[370178710,1751908247875,-460.0,0.0002,2]
[370178711,1751908247886,-310.72,0.00020273,2]
[370178712,1751908247898,-803.0671571,0.00021917,2]
[370178713,1751908255093,-1000.0,0.00025147,60]
[370178714,1751908255126,-2000.0,0.00025149,60]
[370178715,1751908255170,-910.86472656,0.000274,120]
[370178716,1751908255197,-341.0,0.00028,120]
[370178717,1751908255221,-200.0,0.00028,120]
[370178718,1751908255245,-206.63062,0.00028,120]
[370178719,1751908255269,-467.0,0.00028,120]
[370178720,1751908255298,-1000.0,0.00028767,120]
[370178721,1751908255324,-277.67759,0.00029,120]
[370178722,1751908255350,-250.42502,0.00029,120]
[370178723,1751908255378,-325.52594173,0.00029041,120]
[370178724,1751908255402,-735.42224,0.000292,120]
[370178725,1751908255426,-515.3064,0.000292,120]
[370178726,1751908255451,-200.0,0.000296,120]
[370178727,1751908255479,-1000.0,0.0003,120]
[370178728,1751908255508,-200.0,0.0003,120]
[370178729,1751908255538,-2200.0,0.0003,120]
[370178730,1751908255566,-214.06929976,0.0003,120]
[370178731,1751908255592,-524.98484073,0.0003,120]
[370178732,1751908255620,-919.45813321,0.00030136,120]
[370178733,1751908255647,-735.42224,0.000308,120]
[370178734,1751908255672,-515.3064,0.000308,120]
[370178735,1751908255697,-160.0,0.00031,120]
[370178736,1751908255723,-215.21338352,0.00031,120]
[370178737,1751908255748,-160.0,0.00031,120]
[370178738,1751908255773,-160.0,0.00031,120]
[370178739,1751908255797,-160.0,0.00031,120]
[370178740,1751908255822,-837.79946008,0.00031,120]
[370178741,1751908255846,-230.48668418,0.00031,120]
[370178742,1751908255871,-200.0,0.000312,120]
[370178743,1751908255898,-1000.0,0.00032,120]
[370178744,1751908255925,-735.42224,0.000324,120]
[370178745,1751908255948,-515.3064,0.000324,120]
[370178746,1751908255971,-200.0,0.000328,120]
[370178747,1751908255997,-1000.0,0.00033,120]
[370178748,1751908256022,-200.0,0.00033071,120]
[370178749,1751908256046,-200.0,0.00033071,120]
[370178750,1751908256069,-200.0,0.00033473,120]
[370178751,1751908256093,-200.0,0.00033473,120]
[370178752,1751908256119,-735.42224,0.00034,120]
[370178753,1751908256146,-1000.0,0.00034,120]
[370178754,1751908256173,-515.3064,0.00034,120]
[370178755,1751908256199,-200.0,0.000344,120]
[370178756,1751908256227,-277.67759,0.000347,120]
[370178757,1751908256252,-150.0,0.00035,69]
[370178758,1751908256278,-3288.53399784,0.00035,120]
[370178759,1751908256424,-2442.01538637,0.00035,120]
[370178760,1751908256451,-28933.114,0.00035,120]
[370178761,1751908256477,-200.0,0.00035,120]
[370178762,1751908256502,-154.0,0.000353,120]
[370178763,1751908256526,-735.42224,0.000356,120]
[370178764,1751908256550,-515.3064,0.000356,120]
[370178765,1751908256576,-1000.0,0.00036,120]
[370178766,1751908256600,-250.72864,0.00036,120]
[370178767,1751908256625,-156.53943153,0.000365,120]
[370178768,1751908256650,-2569.63670179,0.00036888,120]
[370178769,1751908256674,-735.42224,0.000372,120]
[370178770,1751908256698,-515.3064,0.000372,120]
[370178771,1751908256723,-1000.0,0.00038,120]
[370178772,1751908256749,-1588.21758253,0.000383,120]
[370178773,1751908256773,-4999.9999,0.000385,90]
[370178774,1751908256796,-500.0,0.000387,120]
[370178775,1751908256821,-735.42224,0.000388,120]
[370178776,1751908256844,-515.3064,0.000388,120]
[370178777,1751908256868,-35452.94709509,0.00039,120]
[370178778,1751908256892,-200.0,0.00039685,120]
[370178779,1751908256916,-200.0,0.00039685,120]
[370178780,1751908256939,-296283.44126867,0.000398,120]
[370178781,1751908256963,-1571.13175688,0.0004,120]
[370178782,1751908256988,-235.98801888,0.0004,120]
[370178783,1751908257015,-336.98520137,0.0004,120]
[370178784,1751908257040,-1000.0,0.0004,120]
[370178785,1751908257064,-1657.88848911,0.0004,120]
[370178786,1751908257087,-718.3415521,0.0004,60]
[370178787,1751908257111,-2016.0,0.0004,120]
[370178788,1751908257135,-7000.0,0.0004,120]
[370178789,1751908257159,-466.49,0.0004,120]
[370178790,1751908257182,-214.06929976,0.0004,120]
[370178791,1751908257205,-160.0,0.0004,120]
[370178792,1751908257228,-161.45472706,0.0004,120]
[370178793,1751908257251,-35466.55143251,0.0004,60]
[370178794,1751908257274,-160.0,0.0004,120]
[370178795,1751908257301,-215.21338352,0.0004,120]
[370178796,1751908257324,-160.0,0.0004,120]
[370178797,1751908257350,-837.79946008,0.0004,120]
[370178798,1751908257374,-524.98484073,0.0004,120]
[370178799,1751908257398,-230.48668418,0.0004,120]
[370178800,1751908257422,-155.0,0.0004,120]
[370178801,1751908257445,-200.0,0.00040167,120]
[370178802,1751908257468,-200.0,0.00040167,120]
[370178803,1751908257491,-221.03211509,0.00040167,120]
[370178804,1751908257517,-277.67759,0.000404,120]
[370178805,1751908257540,-735.4223,0.000404,120]
[370178806,1751908257570,-515.30644,0.000404,120]
[370178807,1751908257608,-194.0,0.00041,120]
[370178808,1751908257637,-200.0,0.00041,120]
[370178809,1751908257669,-152.0,0.00041041,60]
[370178810,1751908257703,-152.0,0.00041041,60]
[370178811,1751908257735,-152.0,0.00041041,60]
[370178812,1751908257767,-152.0,0.00041041,60]
[370178813,1751908257798,-700.0,0.00041095,120]
[370178814,1751908257829,-164.08200699,0.00041095,120]
[370178815,1751908257855,-165.0,0.00041096,65]
[370178816,1751908257885,-500.0,0.00041385,60]
[370178817,1751908257915,-500.0,0.00041385,60]
[370178818,1751908257948,-500.0,0.00041385,60]
[370178819,1751908257980,-500.0,0.00041685,60]
[370178820,1751908258007,-500.0,0.00041685,60]
[370178821,1751908258039,-1000.0,0.00042,120]
[370178822,1751908258070,-3810.77327168,0.00042,120]
[370178823,1751908258100,-5000.0,0.000422,120]
[370178824,1751908258132,-1759.72730652,0.000424,120]
[370178825,1751908258160,-475.054,0.00042962,66]
[370178826,1751908258186,-5111.46603591,0.00043,120]
[370178827,1751908258213,-1482.81562335,0.00043,120]
[370178828,1751908258241,-5000.0,0.000432,120]
[370178829,1751908258269,-12459.84678203,0.000432,120]
[370178830,1751908258300,-1000.0,0.000438,90]
[370178831,1751908258328,-421.0,0.000438,90]
[370178832,1751908258358,-1000.0,0.000438,90]
[370178833,1751908258386,-1000.0,0.000438,90]
[370178834,1751908258415,-1000.0,0.000438,90]
[370178835,1751908258444,-1000.0,0.000438,90]
[370178836,1751908258474,-1000.0,0.000438,90]
[370178837,1751908312615,1373.2,0.00027397,120]
[370178838,1751908312969,152.63353823,0.00027397,120]
[370178839,1751908348225,1004.0,0.0002248,120]
[370178840,1751908348676,1004.0,0.0002247,120]
[370178841,1751908349114,1004.0,0.0002246,120]
[370178842,1751908349552,1004.0,0.00024683,120]
[370178843,1751908350009,1004.0,0.00024673,120]
[370178844,1751908350449,1004.0,0.00024663,120]
[370178845,1751908350975,1004.0,0.0002491,120]
[370178846,1751908351529,1004.0,0.000249,120]
[370178847,1751908351974,1004.0,0.00025101,120]
[370178848,1751908352166,150.5,0.0002248,120]
[370178849,1751908352418,1008.07,0.00025091,120]
[370178850,1751908353295,258.89,0.0002247,120]
[370178851,1751908360672,153.0,0.00024,120]
[370178852,1751908410746,200.0,0.00024228,120]
[370178853,1751908470965,200.0,0.00024759,120]
[370178854,1751908503251,1400.0,0.00027397,120]
[370178855,1751908503280,318.80139144,0.00027397,120]
[370178856,1751908530846,200.0,0.00024769,120]
[370178857,1751908537192,192.06317992,0.00025136,120]
[370178858,1751908543105,171.52536176,0.00025136,120]
[370178859,1751908544554,396.76661459,0.000222,69]
[370178860,1751908549449,396.76661457,0.000222,69]
[370178861,1751908554403,396.76661457,0.000222,69]
[370178862,1751908559392,396.76661457,0.00023546,75]
[370178863,1751908590803,200.0,0.00026001,120]
[370178864,1751908650743,200.0,0.00024242,120]
[370178867,1751908710771,200.0,0.00026026,120]
[370178868,1751908710800,500.0,0.00027397,120]
[370178869,1751908727812,500.0,0.00027397,120]
[370178875,1751908771303,200.0,0.00027371,120]
[370178877,1751908799298,2000.0,0.00018322,120]
[370178878,1751908842489,503.9732167,0.00027397,120]
[370178879,1751908890746,200.0,0.00026297,120]
[370178881,1751908898802,500.0,0.00025161,60]
[370178882,1751908899061,500.0,0.00025161,60]
[370178883,1751908899321,500.0,0.00025161,60]
[370178884,1751908899570,500.0,0.00025161,60]
[370178885,1751908899808,500.0,0.00025161,60]
[370178886,1751908900428,500.0,0.00025161,60]
[370178887,1751908900684,500.0,0.00025161,60]
[370178888,1751908900982,500.0,0.00025161,60]
[370178889,1751908901251,182.14014352,0.00025161,60]
[370178891,1751908949792,198.38330729,0.000222,69]
[370178892,1751908950759,200.0,0.00025604,120]
[370178893,1751909011477,200.0,0.00024841,120]
[370178894,1751909071152,200.0,0.00026697,120]
[370178896,1751909130784,200.0,0.00024529,120]
[370178897,1751909134135,-343.98395468,0.00018901,9]
[370178898,1751909134158,-204.05692,0.00019092,2]